[Event "Turkish Cup 2024"]
[Site "Denizli"]
[Date "2024.08.04"]
[Round "8"]
[White "Dulger, Batuhan Ihsan"]
[Black "Var, Sefa"]
[Result "1/2-1/2"]
[ECO "B90"]
[WhiteElo "1667"]
[BlackElo "1841"]
[Annotator "NA COMBH"]
[PlyCount "130"]
[EventDate "2024.08.01"]
[EventType "swiss"]
[EventCountry "TUR"]
[SourceTitle "playchess.com"]
[Source "ChessBase"]
[SourceQuality "1"]
[TimeControl "5400+30"]

1. e4 {[%emt 0:01:00]} c5 {[%emt 0:01:00]} 2. Nf3 {[%emt 0:00:00]} d6 {[%emt 0:00:30]} 3. d4 {[%emt 0:00:00]} cxd4 {[%emt 0:00:30]} 4. Nxd4 {[%emt 0:00:30]} Nf6 {[%emt 0:00:30]} 5. Nc3 {[%emt 0:00:00]} a6 {[%emt 0:00:30]} 6. Be3 {[%emt 0:00:00]} e5 {[%emt 0:00:30]} 7. Nb3 {[%emt 0:00:30]} Be7 {[%emt 0:00:30]} 8. f3 {[%emt 0:00:00]} Be6 {[%emt 0:00:00]} 9. Qd2 {[%emt 0:01:00]} Nbd7 {[%emt 0:00:00]} 10. O-O-O {[%emt 0:00:30]} h5 {[%emt 0:03:30]} 11. Nd5 {[%emt 0:02:30]} Nxd5 {[%emt 0:03:30]} 12. exd5 {[%emt 0:00:30]} Bf5 {[%emt 0:00:00]} 13. Bd3 {[%emt 0:06:30]} Bxd3 14. Qxd3 {[%emt 0:00:00]} Bg5 {[%emt 0:00:30]} 15. Rhe1 {[%emt 0:01:00]} O-O {[%emt 0:03:30]} 16. Qf5 {[%emt 0:06:30]} Bxe3+ {[%emt 0:01:30]} 17. Rxe3 {[%emt 0:00:30]} g6 {[%emt 0:00:30]} 18. Qd3 {[%emt 0:01:30]} a5 {[%emt 0:05:30]} 19. Nd2 {[%emt 0:01:30]} Nc5 {[%emt 0:01:30]} 20. Qe2 {[%emt 0:00:00]} f5 {[%emt 0:01:30]} 21. g4 {[%emt 0:10:00]} f4 {[%emt 0:09:30]} 22. Rc3 {[%emt 0:00:00]} hxg4 {[%emt 0:00:00]} 23. Qg2 {[%emt 0:03:00]} Qd7 {[%emt 0:10:00]} 24. Rg1 {[%emt 0:00:00]} Kg7 {[%emt 0:05:30]} 25. Qxg4 {[%emt 0:01:00]} Qxg4 {[%emt 0:00:30]} 26. Rxg4 {[%emt 0:00:00]} Rf7 {[%emt 0:06:30]} 27. Nc4 {[%emt 0:00:00]} Rd8 {[%emt 0:11:30]} 28. Nxe5 {[%emt 0:02:30]} dxe5 {[%emt 0:00:30]} 29. Rxc5 {[%emt 0:00:00]} Rfd7 {[%emt 0:06:30]} 30. c4 {[%emt 0:00:00]} Kf6 {[%emt 0:06:30]} 31. Rxa5 {[%emt 0:01:30]} Rh8 {[%emt 0:00:30]} 32. h4 {[%emt 0:00:30]} Rdh7 {[%emt 0:00:30]} 33. Rb5 {[%emt 0:00:00]} Rxh4 {[%emt 0:01:30]} 34. Rb6+ {[%emt 0:00:00]} Kf5 {[%emt 0:00:00]} 35. Rgxg6 {[%emt 0:01:30]} e4 {[%emt 0:03:52]} 36. Rbf6+ {[%emt 0:11:30]} Ke5 {[%emt 0:00:05]} 37. Re6+ {[%emt 0:00:30]} Kd4 {[%emt 0:00:30]} 38. Rxe4+ {[%emt 0:00:30]} Kd3 {[%emt 0:00:03]} 39. Rg1 {[%emt 0:00:30]} Rh1 {[%emt 0:00:30]} 40. Rd1+ {[%emt 0:00:30]} Rxd1+ {[%emt 0:00:30]} 41. Kxd1 {[%emt 0:00:30]} Rh1+ {[%emt 0:01:32]} 42. Re1 {[%emt 0:00:00]} Rh2 {[%emt 0:00:53]} 43. Kc1 {[%emt 0:01:00]} Rc2+ {[%emt 0:02:18]} 44. Kb1 {[%emt 0:00:30]} Rxc4 {[%emt 0:00:01]} 45. Rc1 {[%emt 0:01:30]} Ra4 {[%emt 0:00:38]} 46. d6 {[%emt 0:00:00]} Kd2 {[%emt 0:00:03]} 47. b3 {[%emt 0:04:00]} Ra6 {[%emt 0:01:07]} 48. Rc4 {[%emt 0:04:30]} Ke3 {[%emt 0:00:08]} 49. Rc3+ {[%emt 0:07:30]} Ke2 {[%emt 0:00:22]} 50. d7 {[%emt 0:00:30]} Rd6 {[%emt 0:00:16]} 51. Rc7 {[%emt 0:00:30]} b5 {[%emt 0:01:33]} 52. Rb7 {[%emt 0:00:00]} Kxf3 {[%emt 0:00:00]} 53. Rxb5 {[%emt 0:00:00]} Ke4 {[%emt 0:02:24]} 54. Rb4+ {[%emt 0:00:30]} Ke3 {[%emt 0:00:09]} 55. Rb6 {[%emt 0:00:30]} Rxd7 {[%emt 0:00:07]} 56. Re6+ {[%emt 0:00:30]} Kd2 {[%emt 0:01:29]} 57. Rf6 {[%emt 0:00:30]} Ke3 {[%emt 0:00:00]} 58. a4 {[%emt 0:00:30]} f3 {[%emt 0:00:00]} 59. Kb2 {[%emt 0:00:30]} f2 {[%emt 0:00:11]} 60. b4 {[%emt 0:00:30]} Rd2+ {[%emt 0:02:52]} 61. Kc3 {[%emt 0:00:30]} Rd3+ {[%emt 0:00:05]} 62. Kc2 {[%emt 0:00:00]} Rd2+ {[%emt 0:11:14]} 63. Kc3 {[%emt 0:00:00]} Rd3+ {[%emt 0:00:50]} 64. Kc2 {[%emt 0:00:30]} Rd2+ {[%emt 0:00:00]} 65. Kc3 {[%emt 0:00:30]} Rd3+ {[%emt 0:00:00]} 1/2-1/2

[Event "Turkish Cup 2024"]
[Site "Denizli"]
[Date "2024.08.04"]
[Round "9"]
[White "Gunduz, Umut Erdem"]
[Black "Kavri, Yusuf Eren"]
[Result "1-0"]
[ECO "B66"]
[WhiteElo "2276"]
[BlackElo "2090"]
[Annotator "RC"]
[PlyCount "73"]
[EventDate "2024.08.01"]
[EventType "swiss"]
[EventCountry "TUR"]
[SourceTitle "playchess.com"]
[Source "ChessBase"]
[SourceQuality "1"]
[TimeControl "5400+30"]

1. e4 {[%emt 0:01:00]} c5 {[%emt 0:01:00]} 2. Nf3 {[%emt 0:00:30]} Nc6 {[%emt 0:00:30]} 3. d4 {[%emt 0:00:30]} cxd4 {[%emt 0:00:30]} 4. Nxd4 {[%emt 0:00:30]} Nf6 {[%emt 0:00:30]} 5. Nc3 {[%emt 0:00:30]} d6 {[%emt 0:00:30]} 6. Bg5 {[%emt 0:00:00]} e6 {[%emt 0:00:00]} 7. Qd2 {[%emt 0:00:00]} a6 {[%emt 0:00:00]} 8. Nxc6 {[%emt 0:00:30]} bxc6 {[%emt 0:00:00]} 9. O-O-O {[%emt 0:00:00]} Be7 {[%emt 0:03:00]} 10. Bxf6 {[%emt 0:00:00]} gxf6 {[%emt 0:00:30]} 11. Bc4 {[%emt 0:00:00]} Qa5 {[%emt 0:02:30]} 12. f4 {[%emt 0:04:00]} d5 {[%emt 0:04:30]} 13. Bb3 {[%emt 0:03:30]} Bb7 {[%emt 0:05:30]} 14. exd5 {[%emt 0:07:30]} O-O-O {[%emt 0:01:30]} 15. Qe1 {[%emt 0:01:30]} Bd6 {[%emt 0:12:30]} 16. dxe6 {[%emt 0:08:30]} Bxf4+ {[%emt 0:00:30]} 17. Kb1 {[%emt 0:00:30]} Rxd1+ {[%emt 0:00:30]} 18. Qxd1 {[%emt 0:00:00]} fxe6 {[%emt 0:00:30]} 19. Qg4 {[%emt 0:01:00]} Be5 {[%emt 0:00:30]} 20. Qxe6+ {[%emt 0:05:30]} Kb8 {[%emt 0:00:30]} 21. Ne4 {[%emt 0:00:00]} Rf8 {[%emt 0:05:30]} 22. Qe7 {[%emt 0:02:00]} Qd8 {[%emt 0:00:30]} 23. Qb4 {[%emt 0:10:30]} a5 {[%emt 0:03:30]} 24. Qc5 {[%emt 0:02:30]} Re8 {[%emt 0:06:30]} 25. c3 {[%emt 0:17:30]} Bxh2 {[%emt 0:14:30]} 26. Bc2 {[%emt 0:03:30]} Be5 {[%emt 0:02:30]} 27. Rxh7 {[%emt 0:02:30]} Rh8 {[%emt 0:08:30]} 28. Rxh8 {[%emt 0:02:30]} Qxh8 {[%emt 0:00:00]} 29. Qg1 {[%emt 0:00:00]} Qh5 {[%emt 0:03:00]} 30. a4 {[%emt 0:03:00]} Qg4 {[%emt 0:01:30]} 31. Qf2 {[%emt 0:03:30]} Qe6 {[%emt 0:02:30]} 32. Qb6 {[%emt 0:00:30]} Qe7 {[%emt 0:01:30]} 33. Nc5 {[%emt 0:00:30]} Bg3 {[%emt 0:01:40]} 34. Bd3 {[%emt 0:03:35]} Bd6 {[%emt 0:02:26]} 35. Nxb7 {[%emt 0:00:25]} Qe1+ {[%emt 0:00:03]} 36. Kc2 {[%emt 0:01:19]} Bc7 {[%emt 0:00:13]} 37. Qxc6 {[%emt 0:00:17]} 1-0

[Event "Turkish Cup 2024"]
[Site "Denizli"]
[Date "2024.08.04"]
[Round "9"]
[White "Maruflu, Enes Yusuf"]
[Black "Tirpan, Ceren"]
[Result "1-0"]
[ECO "B41"]
[WhiteElo "2228"]
[BlackElo "1926"]
[Annotator "RC"]
[PlyCount "115"]
[EventDate "2024.08.01"]
[EventType "swiss"]
[EventCountry "TUR"]
[SourceTitle "playchess.com"]
[Source "ChessBase"]
[SourceQuality "1"]
[TimeControl "5400+30"]

1. e4 {[%emt 0:04:00]} c5 {[%emt 0:01:00]} 2. Nf3 {[%emt 0:01:30]} e6 {[%emt 0:00:30]} 3. d4 {[%emt 0:00:30]} cxd4 {[%emt 0:00:00]} 4. Nxd4 {[%emt 0:00:00]} a6 {[%emt 0:00:00]} 5. c4 {[%emt 0:00:00]} Nf6 {[%emt 0:00:30]} 6. Nc3 {[%emt 0:00:00]} Bb4 {[%emt 0:00:00]} 7. Qd3 {[%emt 0:00:00]} Nc6 {[%emt 0:05:00]} 8. Nc2 {[%emt 0:08:30]} d5 {[%emt 0:13:30]} 9. exd5 {[%emt 0:04:30]} exd5 {[%emt 0:03:30]} 10. cxd5 {[%emt 0:00:30]} Nxd5 {[%emt 0:02:30]} 11. Bd2 {[%emt 0:01:30]} Nxc3 {[%emt 0:16:30]} 12. Qxd8+ {[%emt 0:00:30]} Kxd8 {[%emt 0:00:00]} 13. bxc3 {[%emt 0:00:30]} Re8+ {[%emt 0:01:00]} 14. Be2 {[%emt 0:00:30]} Bc5 {[%emt 0:03:30]} 15. Ne3 {[%emt 0:03:30]} Be6 {[%emt 0:04:30]} 16. O-O {[%emt 0:01:30]} Kc7 {[%emt 0:01:30]} 17. Nc4 {[%emt 0:02:30]} Rad8 {[%emt 0:04:30]} 18. Bf4+ {[%emt 0:01:30]} Kc8 {[%emt 0:00:30]} 19. Ne3 {[%emt 0:02:30]} Bd6 {[%emt 0:04:30]} 20. Bxd6 {[%emt 0:01:30]} Rxd6 {[%emt 0:00:00]} 21. a4 {[%emt 0:00:30]} g6 {[%emt 0:06:00]} 22. Rab1 {[%emt 0:01:30]} Red8 {[%emt 0:03:30]} 23. Bf3 {[%emt 0:01:30]} R8d7 {[%emt 0:01:30]} 24. Rb6 {[%emt 0:00:30]} Na5 {[%emt 0:00:30]} 25. Rb4 {[%emt 0:01:30]} Nc6 {[%emt 0:03:30]} 26. Rb6 {[%emt 0:02:30]} Na5 {[%emt 0:00:30]} 27. Rb4 {[%emt 0:04:30]} Nc6 {[%emt 0:02:30]} 28. Nc4 {[%emt 0:13:30]} Nxb4 {[%emt 0:02:30]} 29. Nxd6+ {[%emt 0:00:00]} Rxd6 {[%emt 0:00:30]} 30. cxb4 {[%emt 0:00:00]} Bd7 {[%emt 0:00:00]} 31. Rc1+ {[%emt 0:00:30]} Kb8 {[%emt 0:01:00]} 32. a5 {[%emt 0:00:30]} Rd4 {[%emt 0:00:30]} 33. Rd1 {[%emt 0:01:30]} Rxd1+ {[%emt 0:00:30]} 34. Bxd1 {[%emt 0:00:30]} Kc7 {[%emt 0:00:00]} 35. Kf1 {[%emt 0:00:30]} b6 {[%emt 0:01:00]} 36. Ke1 {[%emt 0:02:30]} bxa5 {[%emt 0:00:30]} 37. bxa5 {[%emt 0:00:30]} Kd6 {[%emt 0:00:30]} 38. Be2 {[%emt 0:01:30]} Bc8 {[%emt 0:07:39]} 39. Kd2 {[%emt 0:00:30]} Kc5 {[%emt 0:00:30]} 40. Kc3 {[%emt 0:00:30]} f6 {[%emt 0:00:00]} 41. Bd3 {[%emt 0:00:30]} Bb7 {[%emt 0:03:25]} 42. g3 {[%emt 0:00:30]} Bc8 {[%emt 0:01:00]} 43. h4 {[%emt 0:01:30]} Bb7 {[%emt 0:01:30]} 44. g4 {[%emt 0:05:30]} Bc8 {[%emt 0:06:42]} 45. g5 {[%emt 0:00:30]} f5 {[%emt 0:00:26]} 46. Bc4 {[%emt 0:01:30]} f4 {[%emt 0:02:58]} 47. Bg8 {[%emt 0:00:30]} Bg4 {[%emt 0:00:04]} 48. Bxh7 {[%emt 0:23:12]} Bh5 {[%emt 0:00:07]} 49. Kd3 {[%emt 0:00:24]} Kb4 {[%emt 0:01:14]} 50. Ke4 {[%emt 0:00:05]} Kxa5 {[%emt 0:00:52]} 51. Kxf4 {[%emt 0:00:32]} Kb4 {[%emt 0:00:04]} 52. Ke5 {[%emt 0:02:46]} a5 {[%emt 0:00:06]} 53. f4 {[%emt 0:01:09]} a4 {[%emt 0:00:07]} 54. f5 {[%emt 0:01:05]} a3 {[%emt 0:00:39]} 55. Bg8 {[%emt 0:00:30]} gxf5 {[%emt 0:00:30]} 56. Kxf5 {[%emt 0:00:30]} Bd1 {[%emt 0:00:00]} 57. g6 {[%emt 0:00:00]} Bc2+ {[%emt 0:02:28]} 58. Kf6 {[%emt 0:00:51]} 1-0

[Event "Turkish Cup 2024"]
[Site "Denizli"]
[Date "2024.08.04"]
[Round "9"]
[White "Ozdemir, Serhan Berat"]
[Black "Saricam, Ege"]
[Result "1/2-1/2"]
[ECO "C08"]
[WhiteElo "2194"]
[BlackElo "1794"]
[Annotator "RC"]
[PlyCount "86"]
[EventDate "2024.08.01"]
[EventType "swiss"]
[EventCountry "TUR"]
[SourceTitle "playchess.com"]
[Source "ChessBase"]
[SourceQuality "1"]
[TimeControl "5400+30"]

1. e4 {[%emt 0:06:00]} c5 {[%emt 0:01:00]} 2. Nf3 {[%emt 0:00:30]} e6 {[%emt 0:00:30]} 3. c3 {[%emt 0:00:30]} d5 {[%emt 0:00:30]} 4. exd5 {[%emt 0:00:00]} exd5 {[%emt 0:00:00]} 5. d4 {[%emt 0:00:00]} Nf6 {[%emt 0:00:00]} 6. Bb5+ {[%emt 0:00:00]} Nc6 {[%emt 0:00:30]} 7. O-O {[%emt 0:00:00]} Be7 {[%emt 0:00:30]} 8. dxc5 {[%emt 0:00:00]} Bxc5 {[%emt 0:00:30]} 9. Nbd2 {[%emt 0:00:00]} O-O {[%emt 0:00:30]} 10. Nb3 {[%emt 0:00:00]} Bd6 {[%emt 0:00:30]} 11. Nbd4 {[%emt 0:00:00]} Bd7 {[%emt 0:00:30]} 12. Be2 {[%emt 0:00:30]} a6 {[%emt 0:00:30]} 13. Be3 {[%emt 0:00:30]} Ne4 {[%emt 0:02:30]} 14. Qb3 {[%emt 0:00:30]} Nxd4 {[%emt 0:00:30]} 15. Bxd4 {[%emt 0:00:30]} Bc6 {[%emt 0:00:30]} 16. Rad1 {[%emt 0:00:30]} Qd7 {[%emt 0:00:30]} 17. Qc2 {[%emt 0:04:30]} Rfe8 {[%emt 0:01:30]} 18. Bd3 {[%emt 0:00:30]} Rac8 {[%emt 0:01:30]} 19. Rfe1 {[%emt 0:01:30]} Qc7 {[%emt 0:01:30]} 20. h3 {[%emt 0:02:30]} h6 {[%emt 0:00:30]} 21. Nd2 {[%emt 0:02:30]} Bh2+ {[%emt 0:01:30]} 22. Kh1 {[%emt 0:01:30]} Nxd2 {[%emt 0:02:30]} 23. Qxd2 {[%emt 0:00:00]} Bf4 {[%emt 0:00:30]} 24. Qc2 {[%emt 0:00:00]} Rxe1+ {[%emt 0:05:30]} 25. Rxe1 {[%emt 0:02:30]} Re8 {[%emt 0:00:00]} 26. Rxe8+ {[%emt 0:00:30]} Bxe8 {[%emt 0:00:00]} 27. Qe2 {[%emt 0:00:30]} Bd7 {[%emt 0:00:30]} 28. b4 {[%emt 0:03:30]} Be6 {[%emt 0:00:30]} 29. a4 {[%emt 0:02:30]} Bd6 {[%emt 0:01:30]} 30. Qe3 {[%emt 0:04:30]} Bd7 {[%emt 0:02:30]} 31. Bb6 {[%emt 0:01:30]} Qc8 {[%emt 0:00:30]} 32. a5 {[%emt 0:03:30]} Bf5 {[%emt 0:01:30]} 33. Be2 {[%emt 0:01:30]} Qe6 {[%emt 0:00:30]} 34. Bf3 {[%emt 0:01:30]} Qxe3 {[%emt 0:03:30]} 35. fxe3 {[%emt 0:00:30]} Be4 {[%emt 0:01:30]} 36. Kg1 {[%emt 0:03:30]} f5 {[%emt 0:00:30]} 37. Bd4 {[%emt 0:00:30]} Kf7 {[%emt 0:00:30]} 38. Kf2 {[%emt 0:00:00]} Bxf3 {[%emt 0:02:30]} 39. Kxf3 {[%emt 0:01:00]} g5 {[%emt 0:00:00]} 40. g4 {[%emt 0:00:30]} Kg6 {[%emt 0:00:00]} 41. Ke2 {[%emt 0:00:30]} h5 {[%emt 0:00:30]} 42. Kf3 {[%emt 0:00:30]} fxg4+ {[%emt 0:00:30]} 43. hxg4 {[%emt 0:00:30]} h4 {[%emt 0:00:00]} 1/2-1/2

[Event "Turkish Cup 2024"]
[Site "Denizli"]
[Date "2024.08.04"]
[Round "9"]
[White "Topuz, Mirac Melih"]
[Black "Cetindag, Alper"]
[Result "1-0"]
[ECO "E10"]
[WhiteElo "2148"]
[BlackElo "1923"]
[Annotator "RC"]
[PlyCount "115"]
[EventDate "2024.08.01"]
[EventType "swiss"]
[EventCountry "TUR"]
[SourceTitle "playchess.com"]
[Source "ChessBase"]
[SourceQuality "1"]
[TimeControl "5400+30"]

1. d4 {[%emt 0:06:00]} Nf6 {[%emt 0:01:00]} 2. c4 {[%emt 0:00:30]} c5 {[%emt 0:00:00]} 3. d5 {[%emt 0:00:30]} e6 {[%emt 0:00:00]} 4. Nf3 {[%emt 0:00:00]} d6 {[%emt 0:00:30]} 5. dxe6 {[%emt 0:00:00]} Bxe6 {[%emt 0:04:30]} 6. Nc3 {[%emt 0:00:30]} Bxc4 {[%emt 0:09:30]} 7. Qa4+ {[%emt 0:01:30]} b5 {[%emt 0:00:30]} 8. Nxb5 {[%emt 0:00:30]} Bxb5 {[%emt 0:00:30]} 9. Qxb5+ {[%emt 0:00:00]} Nbd7 {[%emt 0:00:00]} 10. g3 {[%emt 0:09:00]} Be7 {[%emt 0:09:00]} 11. Bg2 {[%emt 0:01:30]} O-O {[%emt 0:00:30]} 12. O-O {[%emt 0:00:30]} Rb8 {[%emt 0:02:30]} 13. Qd3 {[%emt 0:00:30]} Qc7 {[%emt 0:03:30]} 14. Qc2 {[%emt 0:03:30]} Rfc8 {[%emt 0:07:30]} 15. Bf4 {[%emt 0:05:30]} Nd5 {[%emt 0:06:30]} 16. Bg5 {[%emt 0:06:30]} Bf6 {[%emt 0:01:30]} 17. Bxf6 {[%emt 0:01:30]} N7xf6 {[%emt 0:00:30]} 18. Rfd1 {[%emt 0:01:30]} Qb6 {[%emt 0:08:30]} 19. Nh4 {[%emt 0:10:30]} Ne7 {[%emt 0:05:30]} 20. Rd2 {[%emt 0:02:30]} d5 {[%emt 0:03:30]} 21. Rad1 {[%emt 0:03:30]} Qe6 {[%emt 0:00:30]} 22. Rd3 {[%emt 0:05:30]} d4 {[%emt 0:02:30]} 23. Ra3 {[%emt 0:01:30]} Qb6 {[%emt 0:03:30]} 24. Rb3 {[%emt 0:01:30]} Qa5 {[%emt 0:04:30]} 25. Bh3 {[%emt 0:14:30]} Rd8 {[%emt 0:02:30]} 26. a3 {[%emt 0:01:30]} Rxb3 {[%emt 0:01:30]} 27. Qxb3 {[%emt 0:00:30]} Qa6 {[%emt 0:02:30]} 28. Qc2 {[%emt 0:02:30]} c4 {[%emt 0:06:14]} 29. Nf3 {[%emt 0:02:10]} Nc6 {[%emt 0:02:58]} 30. Rc1 {[%emt 0:04:09]} Na5 {[%emt 0:03:22]} 31. Nd2 {[%emt 0:00:59]} d3 {[%emt 0:07:09]} 32. exd3 {[%emt 0:00:04]} cxd3 {[%emt 0:00:24]} 33. Qc7 {[%emt 0:01:11]} Qb6 {[%emt 0:00:47]} 34. Qxb6 {[%emt 0:06:34]} axb6 {[%emt 0:00:30]} 35. Rc8 {[%emt 0:00:06]} Rxc8 {[%emt 0:00:17]} 36. Bxc8 {[%emt 0:00:30]} Nc6 {[%emt 0:00:30]} 37. Bf5 {[%emt 0:00:35]} b5 {[%emt 0:01:39]} 38. Bxd3 {[%emt 0:00:44]} b4 {[%emt 0:00:15]} 39. a4 {[%emt 0:00:16]} Ng4 {[%emt 0:02:00]} 40. Nc4 {[%emt 0:01:55]} Kf8 {[%emt 0:00:27]} 41. Be4 {[%emt 0:01:04]} Na7 {[%emt 0:00:20]} 42. Na5 {[%emt 0:02:27]} Ne5 {[%emt 0:00:37]} 43. f4 {[%emt 0:00:13]} Nd7 {[%emt 0:00:39]} 44. Nc6 {[%emt 0:02:15]} Nxc6 {[%emt 0:00:30]} 45. Bxc6 {[%emt 0:00:30]} Nb6 {[%emt 0:00:00]} 46. Kf2 {[%emt 0:01:28]} Ke7 {[%emt 0:00:30]} 47. a5 {[%emt 0:00:38]} Nc8 {[%emt 0:00:47]} 48. Ke3 {[%emt 0:00:22]} Kd6 {[%emt 0:00:33]} 49. Bb7 {[%emt 0:00:11]} Ne7 {[%emt 0:00:29]} 50. Kd4 {[%emt 0:01:38]} Nf5+ {[%emt 0:00:06]} 51. Kc4 {[%emt 0:00:39]} Kc7 {[%emt 0:00:00]} 52. Bf3 {[%emt 0:00:41]} b3 {[%emt 0:00:17]} 53. Kd3 {[%emt 0:00:35]} Kb8 {[%emt 0:01:03]} 54. Bd5 {[%emt 0:00:10]} Nd6 {[%emt 0:00:04]} 55. Bxb3 {[%emt 0:00:30]} Ka7 {[%emt 0:00:30]} 56. Bc4 {[%emt 0:00:00]} h5 {[%emt 0:00:12]} 57. b4 {[%emt 0:00:00]} h4 {[%emt 0:00:07]} 58. gxh4 {[%emt 0:00:08]} 1-0

[Event "Turkish Cup 2024"]
[Site "Denizli"]
[Date "2024.08.04"]
[Round "9"]
[White "Uysal, Ugur"]
[Black "Cakir, Ege"]
[Result "1-0"]
[ECO "A41"]
[WhiteElo "2114"]
[BlackElo "1889"]
[Annotator "RC"]
[PlyCount "105"]
[EventDate "2024.08.01"]
[EventType "swiss"]
[EventCountry "TUR"]
[SourceTitle "playchess.com"]
[Source "ChessBase"]
[SourceQuality "1"]
[TimeControl "5400+30"]

1. Nf3 g6 2. d4 Bg7 3. c4 d6 4. g3 Nd7 5. Bg2 e5 6. dxe5 dxe5 7. O-O Ne7 8. Nc3 O-O 9. Qc2 Nf5 10. Rd1 c6 11. e3 Re8 12. Bh3 Qe7 13. Bxf5 gxf5 14. Nh4 Nb6 15. b3 e4 16. Bb2 Be6 17. Ne2 Bf6 18. Nf4 Nd7 19. Nh5 Be5 20. f4 exf3 21. Nxf3 f6 22. Nd4 Bxd4 23. exd4 Bf7 24. Nf4 Qe3+ 25. Qf2 Qxf2+ 26. Kxf2 Re4 27. Re1 Rae8 28. Rxe4 fxe4 29. Ke3 Nb6 30. Bc3 Nd7 31. h3 f5 32. g4 fxg4 33. hxg4 b5 34. cxb5 Nf6 35. bxc6 Rc8 36. Bd2 Rxc6 37. g5 Nd5+ 38. Kxe4 Nxf4 39. Bxf4 Re6+ 40. Be5 Rg6 41. Bf6 h6 42. Rh1 h5 43. Ke5 Kf8 44. d5 Be8 45. Rc1 Bd7 46. Rc7 Ke8 47. Kd6 Bf5 48. Rxa7 h4 49. Ra8+ Kf7 50. Rh8 h3 51. Kc7 Rg8 52. Rxg8 Kxg8 53. Be5 1-0

[Event "Turkish Cup 2024"]
[Site "Denizli"]
[Date "2024.08.04"]
[Round "9"]
[White "Cevizci, Yusuf Baran"]
[Black "Onem, Cem"]
[Result "1-0"]
[ECO "C47"]
[WhiteElo "2102"]
[BlackElo "1830"]
[Annotator "RC"]
[PlyCount "67"]
[EventDate "2024.08.01"]
[EventType "swiss"]
[EventCountry "TUR"]
[SourceTitle "playchess.com"]
[Source "ChessBase"]
[SourceQuality "1"]
[TimeControl "5400+30"]

1. e4 {[%emt 0:07:00]} e5 {[%emt 0:01:00]} 2. Nf3 {[%emt 0:00:30]} Nc6 {[%emt 0:00:00]} 3. Nc3 {[%emt 0:00:30]} Nf6 {[%emt 0:00:00]} 4. h3 {[%emt 0:00:00]} Bb4 {[%emt 0:03:30]} 5. Bd3 {[%emt 0:00:00]} a6 {[%emt 0:00:30]} 6. O-O {[%emt 0:00:00]} d6 {[%emt 0:00:00]} 7. a3 {[%emt 0:00:00]} Bc5 {[%emt 0:00:00]} 8. b4 {[%emt 0:00:30]} Ba7 {[%emt 0:00:30]} 9. Bb2 {[%emt 0:01:30]} O-O {[%emt 0:00:30]} 10. Ne2 {[%emt 0:00:30]} Bd7 {[%emt 0:00:30]} 11. Rc1 {[%emt 0:00:30]} Ne7 {[%emt 0:02:30]} 12. c4 {[%emt 0:00:30]} Bc6 {[%emt 0:00:30]} 13. Ng3 {[%emt 0:00:30]} Ng6 {[%emt 0:05:30]} 14. Bb1 {[%emt 0:00:00]} Re8 {[%emt 0:00:30]} 15. Re1 {[%emt 0:00:00]} Qd7 {[%emt 0:18:30]} 16. d4 {[%emt 0:01:30]} Ba4 {[%emt 0:00:00]} 17. Qd2 {[%emt 0:00:30]} exd4 {[%emt 0:00:00]} 18. Nxd4 {[%emt 0:00:30]} c5 {[%emt 0:00:30]} 19. Ndf5 {[%emt 0:00:30]} Re6 {[%emt 0:01:30]} 20. Nxg7 {[%emt 0:00:00]} Kxg7 {[%emt 0:01:30]} 21. Nh5+ {[%emt 0:00:00]} Kf8 {[%emt 0:11:30]} 22. Nxf6 {[%emt 0:00:30]} Qc6 {[%emt 0:00:00]} 23. Qh6+ {[%emt 0:00:30]} Ke7 {[%emt 0:00:00]} 24. Nd5+ {[%emt 0:00:30]} Kd7 {[%emt 0:00:30]} 25. Qxh7 {[%emt 0:00:00]} Rf8 {[%emt 0:01:30]} 26. e5 {[%emt 0:00:00]} dxe5 {[%emt 0:02:30]} 27. Bf5 {[%emt 0:00:30]} cxb4 {[%emt 0:00:00]} 28. axb4 {[%emt 0:00:30]} Kd8 {[%emt 0:02:00]} 29. Bxe6 {[%emt 0:01:30]} fxe6 {[%emt 0:00:30]} 30. Ne3 {[%emt 0:02:30]} Nf4 {[%emt 0:02:30]} 31. Qg7 {[%emt 0:00:30]} Ke8 {[%emt 0:02:30]} 32. b5 {[%emt 0:00:00]} Qe4 {[%emt 0:00:30]} 33. Ba3 {[%emt 0:01:00]} Rf5 {[%emt 0:05:30]} 34. Qe7# {[%emt 0:00:30]} 1-0